fUST/lending_fUST_20250811
["ID","MTS","AMOUNT","RATE_DAILY","PERIOD"]
[378514376,1754890324639,460.0,0.00031301,30]
[378514378,1754890324892,177.02,0.00031301,30]
[378514379,1754890324965,460.0,0.00031301,30]
[378514381,1754890325223,246.97,0.00031301,30]
[378514393,1754890327629,1049.3,0.00031301,30]
[378514396,1754890328078,1049.3,0.00031301,30]
[378514398,1754890328474,1049.3,0.00031301,30]
[378514404,1754890328873,1049.3,0.00031301,30]
[378514410,1754890330026,1049.3,0.00031301,30]
[378514415,1754890330729,1049.3,0.00031301,30]
[378514417,1754890331122,1049.3,0.00031301,30]
[378514418,1754890331298,460.0,0.00031301,30]
[378514421,1754890331528,1049.3,0.00031301,30]
[378514422,1754890331589,460.0,0.00031301,30]
[378514425,1754890331806,460.0,0.00031301,30]
[378514428,1754890332056,460.0,0.00031301,30]
[378514430,1754890332165,1049.3,0.00031301,30]
[378514439,1754890332900,1049.3,0.00031301,30]
[378514443,1754890333357,1049.3,0.00031301,30]
[378514445,1754890333781,1049.3,0.00031301,30]
[378514447,1754890333899,460.0,0.00031301,30]
[378514448,1754890334162,460.0,0.00031301,30]
[378514450,1754890334240,1049.3,0.00031301,30]
[378514451,1754890334409,460.0,0.00031301,30]
[378514453,1754890334636,492.82,0.00031301,30]
[378514455,1754890334945,1049.3,0.00031301,30]
[378514459,1754890336011,1049.3,0.00031301,30]
[378514460,1754890336432,1049.3,0.00031301,30]
[378514463,1754890337198,1049.3,0.00031301,30]
[378514466,1754890338199,1049.3,0.00031301,30]
[378514468,1754890339124,1049.3,0.00031301,30]
[378514472,1754890339471,1049.3,0.00031301,30]
[378514474,1754890340101,1049.3,0.00031301,30]
[378514476,1754890340572,1049.3,0.00031301,30]
[378514480,1754890341037,1049.3,0.00031301,30]
[378514482,1754890341440,1049.50053198,0.00031301,30]
[378514495,1754890347515,460.0,0.00031301,30]
[378514498,1754890347801,460.0,0.00031301,30]
[378514500,1754890348061,460.0,0.00031301,30]
[378514502,1754890348143,460.0,0.00031301,30]
[378514504,1754890348316,426.59597268,0.00031301,30]
[378514505,1754890348394,460.0,0.00031301,30]
[378514506,1754890348699,460.0,0.00031301,30]
[378514507,1754890348954,460.0,0.00031301,30]
[378514511,1754890349283,460.0,0.00031301,30]
[378514514,1754890349533,460.0,0.00031301,30]
[378514515,1754890349834,460.0,0.00031301,30]
[378514520,1754890351074,460.0,0.00031301,30]
[378514521,1754890351396,460.0,0.00031301,30]
[378514523,1754890351632,460.0,0.00031301,30]
[378514525,1754890353174,460.0,0.00031301,30]
[378514526,1754890353418,460.0,0.00031301,30]
[378514527,1754890353543,460.0,0.00031301,30]
[378514529,1754890353671,598.37676096,0.00031301,30]
[378514531,1754890353797,460.0,0.00031301,30]
[378514533,1754890354097,460.0,0.00031301,30]
[378514538,1754890356117,460.0,0.00031301,30]
[378514539,1754890356354,460.0,0.00031301,30]
[378514547,1754890360017,460.0,0.00031301,30]
[378514549,1754890360341,460.0,0.00031301,30]
[378514550,1754890360488,460.0,0.00031301,30]
[378514551,1754890360750,460.0,0.00031301,30]
[378514553,1754890360985,460.0,0.00031301,30]
[378514558,1754890361280,460.0,0.00031301,30]
[378514559,1754890361556,385.99,0.00031301,30]
[378514570,1754890365042,460.0,0.00031301,30]
[378514571,1754890365292,460.0,0.00031301,30]
[378514573,1754890365537,460.0,0.00031301,30]
[378514574,1754890365605,460.0,0.00031301,30]
[378514575,1754890365877,460.0,0.00031301,30]
[378514578,1754890366344,460.0,0.00031301,30]
[378514579,1754890366489,460.0,0.00031301,30]
[378514581,1754890366748,460.0,0.00031301,30]
[378514583,1754890366976,460.0,0.00031301,30]
[378514592,1754890370439,460.0,0.00031301,30]
[378514593,1754890370598,460.0,0.00031301,30]
[378514595,1754890370861,460.0,0.00031301,30]
[378514596,1754890371100,460.0,0.00031301,30]
[378514597,1754890371351,366.93,0.00031301,30]
[378514659,1754890393349,460.0,0.00031301,30]
[378514662,1754890393769,460.0,0.00031301,30]
[378514663,1754890394008,460.0,0.00031301,30]
[378514668,1754890394787,460.0,0.00031301,30]
[378514671,1754890395683,460.0,0.00031301,30]
[378514672,1754890395750,460.0,0.00031301,30]
[378514673,1754890396152,460.0,0.00031301,30]
[378514682,1754890397781,460.0,0.00031301,30]
[378514684,1754890398022,460.0,0.00031301,30]
[378514685,1754890398265,324.39658148,0.00031301,30]
[378514689,1754890399279,460.0,0.00031301,30]
[378514690,1754890399521,460.0,0.00031301,30]
[378514691,1754890399828,460.0,0.00031301,30]
[378514692,1754890400085,460.0,0.00031301,30]
[378514693,1754890400349,460.0,0.00031301,30]
[378514694,1754890400594,460.0,0.00031301,30]
[378514697,1754890400844,275.72,0.00031301,30]
[378514714,1754890403411,181.42882408,0.00031301,30]
[378514733,1754890409245,460.0,0.00031301,30]
[378514734,1754890409477,460.0,0.00031301,30]
[378514736,1754890409735,460.0,0.00031301,30]
[378514738,1754890410072,321.24,0.00031301,30]
[378514761,1754890420815,460.0,0.00031301,30]
[378514762,1754890421470,460.0,0.00031301,30]
[378514765,1754890421639,460.0,0.00031301,30]
[378514766,1754890421790,460.0,0.00031301,30]
[378514767,1754890421905,460.0,0.00031301,30]
[378514769,1754890422044,460.0,0.00031301,30]
[378514770,1754890422170,460.0,0.00031301,30]
[378514771,1754890422440,460.0,0.00031301,30]
[378514772,1754890422697,460.0,0.00031301,30]
[378514774,1754890422957,460.0,0.00031301,30]
[378514777,1754890423205,460.0,0.00031301,30]
[378514778,1754890423469,534.83,0.00031301,30]
[378514799,1754890428764,460.0,0.00031301,30]
[378514870,1754890454319,666.42,0.00031301,30]
[378514872,1754890455036,666.42,0.00031301,30]
[378514876,1754890456317,666.42,0.00031296,30]
[378514881,1754890456955,666.42,0.00031296,30]
[378514884,1754890457960,666.42,0.00031296,30]
[378514886,1754890458385,666.42,0.00031296,30]
[378514889,1754890458713,666.42,0.00031296,30]
[378514890,1754890459317,666.42,0.00031296,30]
[378514893,1754890459761,666.42,0.00031296,30]
[378514894,1754890460078,666.42,0.00031296,30]
[378514898,1754890460580,666.42,0.00031296,30]
[378514901,1754890460951,666.42,0.00031296,30]
[378514903,1754890461348,666.42,0.00031296,30]
[378514905,1754890461757,666.42,0.00031296,30]
[378514908,1754890462416,666.42,0.00031296,30]
[378514917,1754890465831,460.0,0.00031296,30]
[378514918,1754890466428,460.0,0.00031296,30]
[378514919,1754890466486,460.0,0.00031296,30]
[378514920,1754890467044,460.0,0.00031296,30]
[378514921,1754890467194,460.0,0.00031296,30]
[378514923,1754890467294,460.0,0.00031296,30]
[378514925,1754890467555,460.0,0.00031296,30]
[378514926,1754890467811,460.0,0.00031296,30]
[378514928,1754890468096,460.0,0.00031296,30]
[378514929,1754890468234,460.0,0.00031296,30]
[378514930,1754890468326,460.0,0.00031296,30]
[378514931,1754890468588,566.13,0.00031296,30]
[378514932,1754890468987,460.0,0.00031296,30]
[378514941,1754890471488,460.0,0.00031296,30]
[378514947,1754890472386,460.0,0.00031296,30]
[378514949,1754890473293,460.0,0.00031296,30]
[378514951,1754890473754,460.0,0.00031296,30]
[378514952,1754890474192,162.723389,0.00013699,2]
[378514953,1754890474261,460.0,0.00031296,30]
[378514954,1754890474491,460.0,0.00031296,30]
[378514964,1754890477552,460.0,0.00031296,30]
[378514967,1754890478077,478.0,0.00031296,30]
[378514970,1754890478620,460.0,0.00031296,30]
[378515007,1754890486530,460.0,0.00031296,30]
[378515009,1754890486776,460.0,0.00031296,30]
[378515010,1754890487051,460.0,0.00031296,30]
[378515012,1754890487408,460.0,0.00031296,30]
[378515014,1754890487659,460.0,0.00031296,30]
[378515015,1754890488257,460.0,0.00031296,30]
[378515018,1754890488513,460.0,0.00031296,30]
[378515019,1754890488775,460.0,0.00031296,30]
[378515020,1754890489024,460.0,0.00031296,30]
[378515022,1754890489282,460.0,0.00031296,30]
[378515024,1754890490299,609.32,0.00031296,30]
[378515055,1754890498330,460.0,0.00031296,30]
[378515060,1754890500161,480.38313579,0.00031296,30]
[378515067,1754890502709,460.0,0.00031296,30]
[378515068,1754890502873,460.0,0.00031296,30]
[378515071,1754890503840,460.0,0.00031296,30]
[378515074,1754890504283,460.0,0.00031296,30]
[378515076,1754890504527,460.0,0.00031296,30]
[378515095,1754890509412,460.0,0.00031296,30]
[378515096,1754890510062,460.0,0.00031296,30]
[378515097,1754890510317,460.0,0.00031296,30]
[378515098,1754890510575,460.0,0.00031296,30]
[378515099,1754890510888,460.0,0.00031296,30]
[378515101,1754890511614,460.0,0.00031296,30]
[378515104,1754890511889,472.36553321,0.00031296,30]
[378515124,1754890516718,460.0,0.00031296,30]
[378515131,1754890517632,460.0,0.00031296,30]
[378515134,1754890518015,460.0,0.00031296,30]
[378515139,1754890518348,460.0,0.00031296,30]
[378515147,1754890519639,460.0,0.00031296,30]
[378515152,1754890520312,460.0,0.00031296,30]
[378515153,1754890520828,337.48,0.00031296,30]
[378515198,1754890534543,460.0,0.00031296,30]
[378515211,1754890539784,460.0,0.00031296,30]
[378515213,1754890540049,460.0,0.00031296,30]
[378515214,1754890540283,460.0,0.00031296,30]
[378515216,1754890540545,460.0,0.00031296,30]
[378515217,1754890540794,460.0,0.00031296,30]
[378515228,1754890543975,460.0,0.00031296,30]
[378515407,1754890605196,305.904239,0.00027585,30]
[378515426,1754890609471,460.0,0.00031296,30]
[378515427,1754890610260,460.0,0.00031296,30]
[378515430,1754890610948,460.0,0.00031296,30]
[378515434,1754890611365,460.0,0.00031296,30]
[378515436,1754890612146,460.0,0.00031296,30]
[378515444,1754890614404,798.85,0.00031296,30]
[378515445,1754890615244,798.85,0.00031296,30]
[378515448,1754890615849,798.85,0.00031296,30]
[378515450,1754890616508,798.85,0.00031296,30]
[378515455,1754890617777,798.85,0.00031296,30]
[378515457,1754890618241,798.85,0.00031296,30]
[378515458,1754890618566,798.85,0.00031296,30]
[378515462,1754890619640,798.85,0.00031296,30]
[378515464,1754890620316,798.85,0.00031296,30]
[378515466,1754890621452,798.85,0.00031296,30]
[378515470,1754890622489,798.85,0.00031296,30]
[378515478,1754890624251,798.85,0.00031296,30]
[378515479,1754890624806,798.85,0.00031296,30]
[378515482,1754890626008,798.85,0.00031296,30]
[378515483,1754890626415,798.85,0.00031296,30]
[378515486,1754890626976,798.85,0.00031296,30]
[378515488,1754890627424,798.85,0.00031296,30]
[378515490,1754890628173,798.85,0.00031296,30]
[378515493,1754890628803,460.0,0.00031296,30]
[378515494,1754890629032,798.85,0.00031296,30]
[378515495,1754890629367,460.0,0.00031296,30]
[378515497,1754890629607,798.85,0.00031296,30]
[378515498,1754890629918,460.0,0.00031296,30]
[378515499,1754890630010,798.85,0.00031296,30]
[378515502,1754890630803,460.0,0.00031296,30]
[378515505,1754890631377,460.0,0.00031296,30]
[378515549,1754890646684,460.0,0.00031296,30]
[378515551,1754890647246,460.0,0.00031296,30]
[378515552,1754890647775,460.0,0.00031296,30]
[378515554,1754890648323,460.0,0.00031296,30]
[378515555,1754890648736,460.0,0.00031296,30]
[378515557,1754890649808,460.0,0.00031296,30]
[378515562,1754890651749,460.0,0.00031296,30]
[378515566,1754890652170,542.86,0.00031296,30]
[378515649,1754890688064,460.0,0.00031296,30]
[378515650,1754890688288,460.0,0.00031296,30]
[378515651,1754890688562,460.0,0.00031296,30]
[378515653,1754890688830,460.0,0.00031296,30]
[378515679,1754890702964,460.0,0.00031296,30]
[378515680,1754890703295,460.0,0.00031296,30]
[378515682,1754890703565,460.0,0.00031296,30]
[378515692,1754890707410,581.58,0.00031296,30]
[378515724,1754890721137,460.0,0.00031296,30]
[378515769,1754890739444,463.76,0.00031296,30]
[378515773,1754890739894,463.76,0.00031296,30]
[378515775,1754890740411,463.76,0.00031296,30]
[378515776,1754890740771,463.76,0.00031296,30]
[378515778,1754890741838,463.76,0.00031296,30]
[378515780,1754890742251,463.76,0.00031296,30]
[378515783,1754890742642,463.76,0.00031296,30]
[378515801,1754890747923,460.0,0.00031296,30]
[378515805,1754890748701,460.0,0.00031296,30]
[378515806,1754890749392,460.0,0.00031296,30]
[378515807,1754890749847,460.0,0.00031296,30]
[378515809,1754890750174,460.0,0.00031296,30]
[378515810,1754890750578,460.0,0.00031296,30]
[378515813,1754890751444,460.0,0.00031296,30]
[378515815,1754890751786,460.0,0.00031296,30]
[378515816,1754890752263,460.0,0.00031296,30]
[378515817,1754890752808,460.0,0.00031296,30]
[378515821,1754890753198,460.0,0.00031296,30]
[378515824,1754890753573,460.0,0.00031296,30]
[378515827,1754890754378,460.0,0.00031296,30]
[378515828,1754890754812,460.0,0.00031296,30]
[378515831,1754890755550,460.0,0.00031296,30]
[378515832,1754890755717,460.0,0.00031296,30]
[378515833,1754890755802,460.0,0.00031296,30]
[378515834,1754890756055,460.0,0.00031296,30]
[378515835,1754890756296,460.0,0.00031308,30]
[378515839,1754890757319,524.05,0.00031308,30]
[378515853,1754890764129,460.0,0.00031308,30]
[378515867,1754890766381,460.0,0.00031308,30]
[378515869,1754890766610,499.4225337,0.00031308,30]
[378515878,1754890768951,460.0,0.00031308,30]
[378515879,1754890769195,460.0,0.00031308,30]
[378515881,1754890769433,460.0,0.00031308,30]
[378515883,1754890769694,460.0,0.00031308,30]
[378515885,1754890770034,194.93,0.00031308,30]
[378515895,1754890775731,460.0,0.00031308,30]
[378515897,1754890775999,460.0,0.00031308,30]
[378515898,1754890776313,460.0,0.00031308,30]
[378515904,1754890778432,460.0,0.00031308,30]
[378515906,1754890778708,460.0,0.00031308,30]
[378515907,1754890779070,460.0,0.00031308,30]
[378515908,1754890779249,460.0,0.00031308,30]
[378515910,1754890779481,481.54,0.00031308,30]
[378515918,1754890783423,460.0,0.00031308,30]
[378515920,1754890783839,460.0,0.00031308,30]
[378515921,1754890784905,460.0,0.00031308,30]
[378515926,1754890785843,460.0,0.00031308,30]
[378515928,1754890786437,525.86,0.00031308,30]
[378515949,1754890793456,460.0,0.00031308,30]
[378515951,1754890793919,460.0,0.00031308,30]
[378515956,1754890796704,460.0,0.00031308,30]
[378515957,1754890796775,460.0,0.00031308,30]
[378515958,1754890796997,460.0,0.00031308,30]
[378515960,1754890797443,364.44,0.00031308,30]
[378516001,1754890813277,460.0,0.00031308,30]
[378516018,1754890819552,460.0,0.00031308,30]
[378516020,1754890819784,430.7584403,0.00031308,30]
[378516084,1754890843376,460.0,0.00031308,30]
[378516086,1754890843634,460.0,0.00031308,30]
[378516088,1754890844034,460.0,0.00031308,30]
[378516091,1754890844269,491.48985468,0.00031308,30]
[378516159,1754890873590,156.687419,0.00027936,30]
[378516341,1754890940559,460.0,0.00031308,30]
[378516343,1754890941292,460.0,0.00031308,30]
[378516346,1754890941605,460.0,0.00031308,30]
[378516366,1754890950174,460.0,0.00031308,30]
[378516367,1754890950529,460.0,0.00031308,30]
[378516369,1754890950788,487.38691856,0.00031308,30]
[378516412,1754890995309,460.0,0.00031308,30]
[378516413,1754890995543,460.0,0.00031308,30]
[378516414,1754890995945,460.0,0.00031308,30]
[378516415,1754890996670,460.0,0.00031308,30]
[378516416,1754890997450,401.09,0.00031308,30]
[378516422,1754891110206,460.0,0.00031319,30]
[378516423,1754891110483,460.0,0.00031319,30]
[378516424,1754891110743,460.0,0.00031319,30]
[378516425,1754891111020,460.0,0.00031319,30]
[378516427,1754891111269,423.04,0.00031319,30]
[378516439,1754891184326,460.0,0.00031319,30]
[378516440,1754891184573,460.0,0.00031319,30]
[378516441,1754891184843,430.93164204,0.00031319,30]
[378516445,1754891203409,461.55117592,0.00031319,30]
[378516448,1754891207412,460.0,0.00031319,30]
[378516457,1754891222882,2000.0,0.00028,30]
[378516461,1754891264476,2000.0,0.00028,38]
[378516463,1754891277094,460.0,0.00031319,30]
[378516464,1754891277322,460.0,0.00031319,30]
[378516465,1754891277589,460.0,0.00031319,30]
[378516466,1754891277856,460.0,0.00031319,30]
[378516467,1754891278093,460.0,0.00031319,30]
[378516468,1754891278652,460.0,0.00031319,30]
[378516469,1754891278959,460.0,0.00031319,30]
[378516471,1754891279233,460.0,0.00031319,30]
[378516473,1754891279491,460.0,0.00031319,30]
[378516474,1754891282078,2063.58,0.00028,30]
[378516476,1754891285769,2000.0,0.00028,30]
[378516477,1754891298287,460.0,0.00031319,30]
[378516485,1754891365855,2552.0,0.00028,30]
[378516486,1754891373736,460.0,0.00031319,30]
[378516489,1754891411594,2000.0,0.00028,30]
[378516491,1754891415398,162.723389,0.00013699,2]
[378516492,1754891418715,1520.0,0.00031319,30]
[378516495,1754891423579,490.85,0.00031319,30]
[378516525,1754891432773,-8404.92165296,0.000199,2]
[378516526,1754891432793,-3789.07834704,0.000199,2]
[378516527,1754891432829,-739.32357621,0.000199,2]
[378516528,1754891432839,-300.0,0.00020847,2]
[378516529,1754891432848,-300.0,0.00020847,2]
[378516530,1754891432857,-480.0,0.00020847,2]
[378516531,1754891432868,-1200.0,0.00020848,2]
[378516532,1754891432878,-300.0,0.00020848,2]
[378516533,1754891432890,-20000.0,0.00020849,2]
[378516534,1754891432900,-15092.124158,0.0002085,2]
[378516535,1754891432909,-508.79540351,0.00020915,2]
[378516536,1754891432919,-213.0,0.00020932,3]
[378516537,1754891432927,-160.0,0.00021129,2]
[378516538,1754891432937,-152.04038189,0.00021252,2]
[378516539,1754891432946,-151.0,0.00021252,2]
[378516540,1754891432955,-151.0,0.00021252,2]
[378516541,1754891432965,-151.0,0.00021252,2]
[378516542,1754891432974,-250.0,0.00021252,2]
[378516543,1754891432983,-250.0,0.00021252,2]
[378516544,1754891432992,-250.0,0.00021252,2]
[378516545,1754891433005,-250.0,0.00021252,2]
[378516546,1754891433018,-151.0,0.00021252,2]
[378516547,1754891433028,-151.0,0.00021252,2]
[378516548,1754891433037,-151.0,0.00021252,2]
[378516549,1754891433047,-151.0,0.00021252,2]
[378516550,1754891433057,-151.0,0.00021252,2]
[378516551,1754891433066,-151.0,0.00021252,2]
[378516552,1754891433075,-151.0,0.00021252,2]
[378516553,1754891433085,-151.0,0.00021252,2]
[378516554,1754891433097,-151.0,0.00021252,2]
[378516555,1754891433107,-151.0,0.00021252,2]
[378516556,1754891433117,-151.0,0.00021252,2]
[378516557,1754891433126,-151.0,0.00021252,2]
[378516558,1754891433136,-151.0,0.00021252,2]
[378516559,1754891433146,-151.0,0.00021252,2]
[378516560,1754891433155,-151.0,0.00021252,2]
[378516561,1754891433165,-151.0,0.00021252,2]
[378516562,1754891433175,-27562.24802502,0.00021265,2]
[378516563,1754891433185,-200.0,0.00021265,15]
[378516564,1754891433195,-200.0,0.00021265,15]
[378516565,1754891433204,-200.0,0.00021265,15]
[378516566,1754891433214,-200.0,0.00021265,15]
[378516567,1754891433224,-200.0,0.00021265,15]
[378516568,1754891433234,-423.4,0.00021387,2]
[378516569,1754891433245,-4528.40192323,0.00021655,2]
[378516570,1754891433255,-423.4,0.00021706,2]
[378516571,1754891433266,-500.0,0.00021933,2]
[378516572,1754891433276,-500.0,0.00022,2]
[378516573,1754891433287,-500.0,0.00022,2]
[378516574,1754891433297,-500.0,0.00022,2]
[378516575,1754891433306,-500.0,0.00022,2]
[378516576,1754891433317,-184.0,0.00022,2]
[378516577,1754891433327,-423.4,0.00022026,2]
[378516578,1754891433338,-200.0,0.0002211,4]
[378516579,1754891433348,-500.0,0.00022117,2]
[378516580,1754891433357,-321.33794111,0.00022156,2]
[378516581,1754891433367,-184.0,0.00022192,7]
[378516582,1754891433376,-500.0,0.00022283,2]
[378516583,1754891433387,-375.825208,0.00022286,2]
[378516584,1754891433396,-1906.21,0.00022316,10]
[378516585,1754891433406,-3264.11,0.00022316,10]
[378516586,1754891433416,-2720.1,0.00022316,10]
[378516587,1754891433426,-2266.75,0.00022316,10]
[378516588,1754891433437,-500.0,0.00022317,2]
[378516589,1754891433447,-160.0,0.00022326,2]
[378516590,1754891433456,-160.0,0.00022326,2]
[378516591,1754891433469,-215.4905783,0.00022326,2]
[378516592,1754891433479,-160.0,0.00022326,2]
[378516593,1754891433488,-461.69158338,0.00022326,2]
[378516594,1754891433498,-417.15472785,0.00022326,2]
[378516595,1754891433508,-527.9539256,0.00022326,2]
[378516596,1754891433518,-843.18994796,0.00022326,2]
[378516597,1754891433528,-216.68257536,0.00022326,2]
[378516598,1754891433543,-12671.21867243,0.00022326,2]
[378516599,1754891433557,-160.0,0.00022326,2]
[378516600,1754891433567,-231.9940742,0.00022326,2]
[378516601,1754891433577,-160.0,0.00022326,2]
[378516602,1754891433587,-160.0,0.00022326,2]
[378516603,1754891433598,-160.0,0.00022326,2]
[378516604,1754891433607,-160.0,0.00022326,2]
[378516605,1754891433617,-500.0,0.00022328,2]
[378516606,1754891433627,-151.0,0.00022328,2]
[378516607,1754891433637,-151.0,0.00022328,2]
[378516608,1754891433647,-151.0,0.00022328,2]
[378516609,1754891433657,-151.0,0.00022328,2]
[378516610,1754891433667,-151.0,0.00022328,2]
[378516611,1754891433676,-151.0,0.00022328,2]
[378516612,1754891433686,-500.0,0.00022328,2]
[378516613,1754891433695,-500.0,0.00022328,2]
[378516614,1754891433706,-151.19182433,0.00022328,2]
[378516615,1754891433715,-200.60318908,0.0002233,2]
[378516616,1754891433725,-151.0,0.0002233,2]
[378516617,1754891433735,-500.0,0.0002233,2]
[378516618,1754891433745,-311.395,0.00022339,2]
[378516619,1754891433754,-423.4,0.00022345,2]
[378516620,1754891433764,-880.6303605,0.00022377,2]
[378516621,1754891433774,-375.825208,0.0002247,10]
[378516622,1754891433784,-156.687419,0.00022575,7]
[378516623,1754891433795,-500.0,0.00022602,2]
[378516624,1754891433805,-198.0,0.00022602,2]
[378516625,1754891433814,-151.0,0.00022602,2]
[378516626,1754891433824,-151.0,0.00022602,2]
[378516627,1754891433834,-500.0,0.00022602,2]
[378516628,1754891433843,-500.0,0.00022602,2]
[378516629,1754891433853,-224.39915183,0.00022604,2]
[378516630,1754891433862,-618.07472005,0.00022604,2]
[378516631,1754891433871,-259.81747322,0.00022663,2]
[378516632,1754891433881,-151.0,0.00022663,2]
[378516633,1754891433890,-151.0,0.00022663,2]
[378516634,1754891433900,-153.12418074,0.00022663,2]
[378516635,1754891433910,-151.0,0.00022663,2]
[378516636,1754891433920,-151.0,0.00022663,2]
[378516637,1754891433930,-151.0,0.00022663,2]
[378516638,1754891433940,-254.04480665,0.00022663,2]
[378516639,1754891433949,-9609.27,0.00022663,2]
[378516640,1754891433959,-423.4,0.00022664,2]
[378516641,1754891433968,-5602.0,0.00022664,2]
[378516642,1754891433978,-241.54488699,0.00022665,2]
[378516643,1754891433988,-420.0,0.0002268,2]
[378516644,1754891433997,-357.0,0.0002268,2]
[378516645,1754891434007,-160.0,0.0002275,2]
[378516646,1754891434020,-5602.0,0.00022796,2]
[378516647,1754891434030,-1000.0,0.00022831,2]
[378516648,1754891434039,-500.0,0.00022876,2]
[378516649,1754891434049,-151.0,0.00022876,2]
[378516650,1754891434059,-500.0,0.00022876,2]
[378516651,1754891434069,-500.0,0.00022876,2]
[378516652,1754891434078,-1597.65154907,0.000229,2]
[378516653,1754891434093,-439.565,0.000229,2]
[378516687,1754891438644,-5335.74470985,0.000229,2]
[378516689,1754891438654,-199.60582241,0.00022937,2]
[378516691,1754891438663,-151.0,0.00022937,2]
[378516693,1754891438672,-259.84493696,0.00022937,2]
[378516695,1754891438681,-151.0,0.00022937,2]
[378516697,1754891438690,-375.825208,0.0002294,2]
[378516699,1754891438699,-423.4,0.00022984,2]
[378516700,1754891438708,-351.24,0.00022989,3]
[378516702,1754891438718,-151.0,0.00023,7]
[378516704,1754891438727,-151.0,0.00023,7]
[378516706,1754891438736,-151.0,0.00023,7]
[378516708,1754891438745,-9247.31,0.00023,7]
[378516710,1754891438755,-151.0,0.00023,7]
[378516712,1754891438764,-151.0,0.00023,7]
[378516714,1754891438773,-151.0,0.00023,7]
[378516716,1754891438783,-151.0,0.00023,7]
[378516718,1754891438792,-417.15472785,0.00023,7]
[378516720,1754891438802,-12671.21867243,0.00023,7]
[378516722,1754891438811,-215.4905783,0.00023,7]
[378516724,1754891438820,-160.0,0.00023,2]
[378516726,1754891438830,-527.9539256,0.00023,7]
[378516728,1754891438839,-375.825208,0.00023009,15]
[378516730,1754891438851,-184.0,0.00023014,7]
[378516732,1754891438861,-7372.96125891,0.00023025,2]
[378516734,1754891438870,-292.7,0.00023033,3]
[378516735,1754891438879,-878.12,0.00023095,3]
[378516737,1754891438888,-636.0,0.00023108,2]
[378516739,1754891438897,-2151.0,0.00023108,2]